bitfinex-derivatives/quotes_ETHF0:USTF0_20241022
["timestamp","ask_amount","ask_price","bid_price","bid_amount"]
[1729591784819,1.1,2624.5,2624.4,1.48121]
[1729591785027,3.2078,2624.8,2624.7,0.38116]
[1729591785218,8.1174,2624.8,2624.7,0.38116]
[1729591789722,4.9096,2624.8,2624.7,0.38116]
[1729591790722,7.0174,2624.8,2624.7,0.38116]
[1729591791022,8.1174,2624.8,2624.7,0.38116]
[1729591804533,1.1,2625.4,2625.0,0.38112]
[1729591804725,3.2078,2625.7,2625.4,0.38106]
[1729591804726,1.1,2625.5,2625.4,0.38106]
[1729591804927,1.1,2626.0,2625.5,0.95262]
[1729591804928,4.3078,2626.0,2625.5,0.95262]
[1729591805234,3.2078,2626.0,2625.9,1.48099]
[1729591806036,1.1,2626.5,2626.4,0.38092]
[1729591806226,1.1,2626.5,2626.4,1.48092]
[1729591806932,1.1,2626.5,2625.7,0.089]
[1729591807132,0.39528707,2626.7,2625.7,0.38102]
[1729591807133,1.1,2625.9,2625.7,0.38102]
[1729591807340,1.1,2625.9,2625.8,1.481]
[1729591807534,1.1,2626.0,2625.9,0.38099]
[1729591807729,1.1,2626.1,2626.0,0.38097]
[1729591808033,3.2078,2626.3,2626.2,0.38094]
[1729591808034,4.3078,2626.3,2626.2,0.38094]
[1729591808237,4.3078,2626.3,2626.2,1.48094]
[1729591808532,3.2078,2626.3,2626.2,0.38094]
[1729591808838,3.2078,2626.3,2625.8,2.38]
[1729591809144,3.2078,2626.3,2626.0,0.38097]
[1729591809337,3.2078,2626.3,2625.6,2.38]
[1729591809538,3.58874,2626.3,2625.9,0.38098]
[1729591810034,3.2078,2626.3,2626.0,0.38097]
[1729591810234,3.2078,2626.3,2625.9,0.38098]
[1729591810435,3.58873,2626.3,2625.9,0.38098]
[1729591811236,3.58873,2626.3,2626.0,0.38097]
[1729591811833,3.2078,2626.3,2626.0,0.38097]
[1729591812040,3.58873,2626.3,2626.0,0.38097]
[1729591813236,3.58873,2626.3,2625.6,2.38]
[1729591813434,3.58873,2626.3,2625.5,3.2078]
[1729591813435,2.38,2626.2,2625.5,3.2078]
[1729591813634,2.38,2626.2,2625.4,2.38]
[1729591813635,0.381,2625.9,2625.6,0.38103]
[1729591813841,2.76101,2625.8,2625.2,3.2078]
[1729591814040,3.2078,2625.7,2625.5,0.38104]
[1729591814337,3.2078,2625.7,2625.2,3.2078]
[1729591814536,0.38107,2625.4,2625.2,3.2078]
[1729591814731,2.38,2625.6,2625.3,0.38107]
[1729591814732,2.76104,2625.6,2625.3,0.38107]
[1729591814931,2.76104,2625.6,2625.2,3.2078]
[1729591814932,2.38,2625.6,2625.4,0.38106]
[1729591815132,2.38,2625.6,2625.2,3.2078]
[1729591815343,2.76104,2625.6,2625.3,0.38107]
[1729591815738,2.38,2625.6,2625.2,3.2078]
[1729591815937,2.76104,2625.6,2625.3,0.38107]
[1729591816138,0.38105,2625.5,2625.2,3.58888]
[1729591816644,2.38,2625.6,2625.2,3.58888]
[1729591816645,0.38106,2625.4,2625.2,3.2078]
[1729591816942,2.38,2625.6,2624.8,5.5878]
[1729591817243,3.2078,2625.7,2625.0,2.38]
[1729591817445,3.2078,2625.7,2625.6,0.38103]
[1729591821842,0.77480563,2625.9,2625.3,2.38]
[1729591822040,5.5878,2625.4,2624.8,0.089]
[1729591822237,5.5878,2625.4,2624.3,0.089]
[1729591822238,2.38,2624.9,2624.3,0.089]
[1729591822550,3.2078,2625.1,2624.4,0.3812]
[1729591822551,2.38,2624.7,2624.4,0.3812]
[1729591822942,2.38,2624.7,2624.1,44.0078]
[1729591823245,5.5878,2624.8,2624.5,0.38119]
[1729591823747,5.5878,2624.8,2624.1,44.0078]
[1729591823943,5.5878,2624.8,2624.5,0.38118]
[1729591824446,5.96895,2624.8,2624.5,0.38118]
[1729591824948,5.5878,2624.8,2624.5,0.38118]
[1729591825342,5.96895,2624.8,2624.5,0.38118]
[1729591825541,5.5878,2624.8,2624.4,0.3812]
[1729591826048,5.96896,2624.8,2624.5,0.38119]
[1729591826850,5.5878,2624.8,2624.1,44.0078]
[1729591827352,3.2078,2624.8,2624.7,0.38116]
[1729591827649,3.2078,2625.1,2625.0,0.38112]
[1729591828154,2.38,2625.5,2625.0,3.8096]
[1729591828155,5.5878,2625.5,2625.0,3.8096]
[1729591828454,3.2078,2625.5,2625.3,0.38107]
[1729591828654,3.2078,2625.5,2625.2,0.38108]
[1729591828952,3.58885,2625.5,2625.2,0.38108]
[1729591829747,3.58885,2625.5,2624.8,3.2078]
[1729591829952,3.58885,2625.5,2625.2,0.38108]
[1729591830658,3.58885,2625.5,2625.3,0.38107]
[1729591831352,3.2078,2625.5,2625.4,0.38106]
[1729591831662,3.2078,2625.5,2624.8,4.16065]
[1729591831855,0.38106,2625.4,2625.2,0.38108]
[1729591832051,5.96885,2625.5,2625.3,0.38107]
[1729591832359,0.38106,2625.4,2625.2,0.38108]
[1729591833559,5.96886,2625.5,2624.8,3.2078]
[1729591833859,5.96886,2625.5,2625.3,0.38107]
[1729591834560,5.96886,2625.5,2625.4,0.38106]
[1729591834561,3.2078,2625.5,2625.4,0.38106]
[1729591834958,0.38101,2625.8,2625.7,0.38102]
[1729591834959,3.2078,2625.8,2625.7,0.38102]
[1729591835152,12.31406569,2626.9,2626.0,0.38097]
[1729591835153,3.2078,2626.1,2626.0,0.38097]
[1729591836561,3.2078,2626.1,2625.4,3.33266]
[1729591836767,3.58876,2626.1,2625.8,0.381]
[1729591837059,2.38,2626.0,2625.2,3.2078]
[1729591837250,2.38,2626.0,2625.3,40.8]
[1729591837453,2.38,2626.0,2625.8,0.38099]
[1729591837964,0.38099,2625.9,2625.3,40.8]
[1729591838259,0.38099,2625.9,2625.6,0.38103]
[1729591839055,0.38107,2625.4,2625.1,0.3811]
[1729591839260,3.2078,2625.2,2625.1,0.3811]
[1729591839461,0.38111,2625.1,2624.9,0.38113]
[1729591840161,0.38111,2625.1,2624.8,0.38114]
[1729591840455,0.38111,2625.1,2624.6,3.2078]
[1729591840658,5.5878,2625.2,2624.6,3.2078]
[1729591840659,5.9689,2625.2,2624.9,0.38113]
[1729591840959,5.5878,2625.2,2624.9,0.38113]
[1729591841560,5.9689,2625.2,2624.9,0.38113]
[1729591841962,3.58889,2625.2,2625.0,0.38111]
[1729591842259,3.2078,2625.2,2624.6,3.2078]
[1729591842461,3.2078,2625.2,2625.1,0.3811]
[1729591843459,3.2078,2625.2,2625.0,0.38111]
[1729591843769,3.2078,2625.2,2624.7,0.38116]
[1729591844063,3.2078,2625.2,2625.0,0.38111]
[1729591845263,3.2078,2625.2,2625.1,0.3811]
[1729591845960,3.2078,2625.2,2624.6,3.2078]
[1729591845961,3.2078,2625.2,2625.0,0.38111]
[1729591846157,3.2078,2625.2,2625.1,0.3811]
[1729591846564,3.58885,2625.5,2625.3,0.38107]
[1729591846759,3.2078,2625.5,2625.4,0.38106]
[1729591846953,3.2078,2625.5,2625.3,0.38106]
[1729591847259,3.2078,2625.5,2625.0,0.38112]
[1729591847460,3.58885,2625.5,2625.3,0.38107]
[1729591847664,3.2078,2625.5,2625.4,0.38106]
[1729591848956,3.58885,2625.5,2625.3,0.38107]
[1729591849157,0.38106,2625.4,2625.2,0.38108]
[1729591849663,5.5878,2625.5,2624.9,40.8]
[1729591849866,2.38,2625.2,2624.6,3.2078]
[1729591850068,5.5878,2625.2,2624.8,0.38114]
[1729591850365,0.38112,2625.0,2624.8,0.38114]
[1729591850560,0.38111,2625.1,2624.6,3.2078]
[1729591850761,5.5878,2625.2,2624.9,0.38113]
[1729591850966,5.9689,2625.2,2624.9,0.38113]
[1729591851360,0.38111,2625.1,2624.8,0.38114]
[1729591851662,5.5878,2625.2,2624.8,0.38114]
[1729591851866,0.38112,2625.0,2624.8,0.38114]
[1729591852063,5.5878,2625.2,2624.6,3.2078]
[1729591852261,3.2078,2624.9,2624.3,5.5878]
[1729591852577,3.2078,2624.9,2624.7,0.38115]
[1729591852756,3.58894,2624.9,2624.7,0.38115]
[1729591853768,3.58894,2624.9,2624.6,0.38117]
[1729591853769,0.38115,2624.8,2624.6,0.38117]
[1729591853965,2.38,2624.7,2624.3,3.2078]
[1729591854173,2.76117,2624.7,2624.4,0.3812]
[1729591854570,2.76117,2624.7,2623.7,0.089]
[1729591854571,2.38,2624.5,2623.7,0.089]
[1729591854869,5.96905,2624.1,2623.8,0.38128]
[1729591855169,3.2078,2624.1,2623.9,0.38127]
[1729591855374,3.2078,2624.1,2623.4,0.95337]
[1729591855869,3.2078,2624.1,2624.0,0.38126]
[1729591856068,3.2078,2624.1,2623.9,0.38127]
[1729591856570,3.2078,2624.1,2623.4,1.13971452]
[1729591856760,3.2078,2624.1,2623.9,0.38127]
[1729591857370,0.38131,2623.7,2623.4,0.38134]
[1729591857573,2.38,2623.6,2623.3,0.38135]
[1729591857773,2.76132,2623.6,2623.3,0.38135]
[1729591859071,2.76133,2623.6,2623.2,0.38137]
[1729591860866,2.38,2623.6,2622.9,4.20023099]
[1729591861074,2.38,2623.6,2623.4,0.38135]
[1729591861269,3.2078,2623.7,2623.5,0.38134]
[1729591861468,3.2078,2623.7,2623.0,2.38]
[1729591861673,3.58911,2623.7,2623.4,0.38135]
[1729591862065,3.2078,2623.7,2623.0,2.38]
[1729591862270,3.2078,2623.7,2623.6,0.38132]
[1729591862464,3.2078,2623.7,2623.2,3.2078]
[1729591862765,3.2078,2623.7,2623.5,0.38133]
[1729591862967,3.2078,2623.7,2623.2,3.2078]
[1729591863170,3.2078,2623.7,2623.0,2.38]
[1729591863474,3.2078,2623.7,2623.5,0.38133]
[1729591864967,3.2078,2623.7,2623.6,0.38132]
[1729591867881,3.2078,2623.7,2623.0,2.38]
[1729591868071,3.2078,2623.7,2623.5,0.38133]
[1729591868471,5.96912,2623.7,2623.3,0.38135]
[1729591868873,3.2078,2623.4,2622.9,4.20023099]
[1729591869079,2.38,2623.1,2622.9,4.20023099]
[1729591869278,2.38,2623.1,2622.9,8.39445099]
[1729591869481,2.38,2623.1,2623.0,0.38141]
[1729591869980,3.2078,2623.4,2623.0,3.812]
[1729591870178,5.5878,2623.4,2623.2,0.38138]
[1729591870776,5.96916,2623.4,2623.1,0.38139]
[1729591871177,5.96916,2623.4,2622.9,4.20023099]
[1729591871583,5.5878,2623.4,2623.0,0.38141]
[1729591871777,5.5878,2623.4,2623.2,0.38137]
[1729591872180,5.5878,2623.4,2622.9,3.2078]
[1729591872382,5.5878,2623.4,2623.3,0.38137]
[1729591873188,5.5878,2623.4,2623.2,0.38137]
[1729591873885,5.5878,2623.4,2622.9,3.2078]
[1729591874084,5.5878,2623.4,2623.3,0.38137]
[1729591880476,9.3998,2623.4,2622.8,40.8]
[1729591880781,1.61156025,2623.8,2622.8,40.8]
[1729591880782,0.38142,2622.9,2622.8,0.38143]
[1729591881088,2.38,2623.0,2622.3,0.95377]
[1729591881089,2.76142,2623.0,2622.3,0.95377]
[1729591881285,2.76142,2623.0,2622.4,40.8]
[1729591881586,2.38,2623.0,2622.3,0.95377]
[1729591881886,2.38,2623.0,2622.4,0.95375]
[1729591882188,2.38,2623.0,2622.8,0.38143]
[1729591882686,2.38,2623.0,2622.9,0.38142]
[1729591884583,1.80732674,2623.0,2622.9,0.38142]
[1729591887495,5.01512674,2623.0,2622.9,0.38142]
[1729591889593,1.80732674,2623.0,2622.9,0.38142]
[1729591889893,5.01512674,2623.0,2622.9,0.38142]
[1729591892094,3.2078,2623.0,2622.9,0.38142]
[1729591892294,2.76477175,2623.2,2622.6,0.95366]
[1729591892295,2.38,2623.2,2622.6,0.95366]
[1729591892482,2.38,2623.2,2623.1,0.38139]
[1729591897597,3.2078,2623.3,2623.1,3.812]
[1729591897798,3.2078,2624.0,2623.2,6.192]
[1729591897997,2.38,2624.2,2623.4,3.2078]
[1729591898191,2.38,2624.2,2623.7,0.99243099]
[1729591898391,2.38,2624.2,2624.1,0.38125]
[1729591898791,2.38,2624.2,2624.0,0.38125]
[1729591899694,2.38,2624.2,2624.1,0.38125]
[1729591904698,2.38,2624.2,2623.7,3.2078]
[1729591904894,2.76124,2624.2,2624.0,0.38125]
[1729591905096,2.38,2624.2,2624.0,0.38125]
[1729591906003,2.38,2624.2,2624.1,0.38125]
[1729591911313,2.38,2624.2,2624.0,0.38126]
[1729591911515,2.38,2624.2,2624.1,0.38125]
[1729591912409,2.38,2624.2,2623.7,3.2078]
[1729591912606,2.38,2624.2,2624.1,0.38125]
[1729591913408,6.1904,2624.2,2623.7,3.2078]
[1729591913610,2.38,2623.8,2623.7,0.3813]
[1729591914012,2.38,2623.8,2623.2,3.2078]
[1729591914221,2.38,2623.6,2623.3,0.38137]
[1729591914511,2.38,2623.6,2622.9,4.16135]
[1729591914512,3.2078,2623.5,2622.9,4.16135]
[1729591914704,3.2078,2623.5,2623.3,0.38136]
[1729591915107,3.2078,2623.5,2623.4,0.38135]
[1729591916916,2.38,2623.6,2623.5,0.38134]
[1729591917320,6.192,2623.6,2623.5,0.38134]
[1729591918007,6.57332,2623.6,2623.5,0.38134]
[1729591918212,6.192,2623.6,2623.0,3.2078]
[1729591918511,0.38134,2623.5,2623.3,0.38135]
[1729591918714,0.38134,2623.5,2623.0,3.2078]
[1729591919221,0.38134,2623.5,2623.3,0.38135]
[1729591921010,2.76133,2623.6,2623.3,0.38135]
[1729591921212,0.38134,2623.5,2623.3,0.38135]
[1729591923220,0.38134,2623.5,2622.5,0.089]
[1729591923221,6.192,2623.4,2622.5,1.04271]
[1729591923430,2.38,2623.1,2623.0,0.38141]
[1729591924223,5.5878,2623.2,2622.5,0.95371]
[1729591924424,5.96918,2623.2,2623.0,0.3814]
[1729591925516,5.5878,2623.2,2622.4,6.58374886]
[1729591925717,5.5878,2623.2,2623.1,0.38139]
[1729591926825,5.96918,2623.2,2623.1,0.38139]
[1729591927018,2.76138,2623.2,2623.1,0.38139]
[1729591927722,2.38,2623.2,2623.1,0.38139]
[1729591928019,3.2078,2623.3,2623.2,0.38138]
[1729591928324,2.38,2623.4,2622.7,0.95364]
[1729591928522,2.38,2623.4,2623.3,0.38137]
[1729591929716,2.38,2623.4,2622.5,3.2968]
[1729591929717,6.192,2623.4,2622.5,4.25049]
[1729591929920,2.38,2623.0,2622.9,0.38142]
[1729591930328,2.76141,2623.0,2622.9,0.38142]
[1729591930813,2.38,2623.0,2622.9,0.38142]
[1729591931323,2.38,2623.0,2622.7,0.38144]
[1729591931324,0.38143,2622.9,2622.7,0.38144]
[1729591931725,0.38143,2622.9,2622.3,0.95378]
[1729591932025,0.38143,2622.9,2622.7,0.38144]
[1729591933430,0.38144,2622.8,2622.7,0.38144]
[1729591934327,5.5878,2623.0,2622.2,0.99594886]
[1729591934527,2.38,2622.7,2622.6,0.38146]
[1729591934728,2.38,2622.7,2622.5,0.38148]
[1729591934729,2.76146,2622.7,2622.5,0.38148]
[1729591934927,2.38,2622.6,2622.0,3.2078]
[1729591935120,2.38,2622.6,2622.4,0.38149]
[1729591935628,2.76147,2622.6,2622.4,0.38149]
[1729591935828,2.38,2622.6,2622.5,0.38148]
[1729591936221,2.38,2622.6,2622.4,0.38149]
[1729591936222,2.76147,2622.6,2622.4,0.38149]
[1729591936417,2.76147,2622.6,2622.0,3.2078]
[1729591936725,2.76147,2622.6,2622.4,0.38149]
[1729591937318,2.76147,2622.6,2622.0,3.2078]
[1729591937524,2.76147,2622.6,2622.5,0.38148]
[1729591937925,2.76147,2622.6,2622.0,3.2078]
[1729591938126,2.76147,2622.6,2622.4,0.38149]
[1729591938521,2.38,2622.6,2622.0,3.2078]
[1729591938721,2.38,2622.6,2622.3,0.38151]
[1729591938722,0.38149,2622.5,2622.3,0.38151]
[1729591938930,2.38,2622.6,2622.3,0.38151]
[1729591939137,2.7615,2622.4,2621.8,40.98655405]
[1729591939333,2.7615,2622.4,2622.3,0.38151]
[1729591939522,5.9693,2622.4,2622.2,0.38152]
[1729591940128,5.5878,2622.4,2622.3,0.38151]
[1729591940333,3.2078,2622.4,2622.3,0.38151]
[1729591942331,5.9693,2622.4,2622.2,0.38152]
[1729591942531,5.5878,2622.4,2622.3,0.38151]
[1729591943237,3.2078,2622.4,2622.3,0.38151]
[1729591944035,5.5878,2622.4,2622.3,0.38151]
[1729591945334,3.2078,2622.4,2622.3,0.38151]
[1729591946038,3.2078,2622.7,2622.6,0.38147]
[1729591947939,2.76144,2622.8,2622.7,0.38145]
[1729591948143,5.96924,2622.8,2622.7,0.38145]
[1729591948831,5.5878,2622.8,2622.7,0.38145]
[1729591949031,5.96924,2622.8,2622.7,0.38145]
[1729591949435,5.96924,2622.8,2622.6,0.38146]
[1729591951043,5.96924,2622.8,2622.7,0.38145]
[1729591951534,5.96924,2622.8,2622.2,0.95382]
[1729591951535,5.96924,2622.8,2622.6,0.38146]
[1729591951738,5.96924,2622.8,2622.7,0.38145]
[1729591952341,4.68924,2622.8,2622.7,0.38145]
[1729591952536,4.3078,2622.8,2622.7,0.38145]
[1729591952736,1.1,2622.8,2622.7,1.1]
[1729591953042,1.1,2622.8,2622.7,1.48145]
[1729591953235,1.1,2622.8,2622.7,1.1]
[1729591953437,1.1,2622.8,2622.7,0.38145]
[1729591954334,2.38,2623.0,2622.9,0.38142]
[1729591955432,2.38,2623.2,2623.1,0.38139]
[1729591963344,2.76139,2623.2,2623.0,0.3814]
[1729591963546,0.38142,2623.0,2622.8,0.38143]
[1729591963750,5.9692,2623.1,2622.9,0.38142]
[1729591963936,5.5878,2623.1,2623.0,0.38141]
[1729591964844,3.2078,2623.1,2623.0,0.38141]
[1729591969541,3.2078,2623.1,2623.0,4.19341]
[1729591972459,2.38,2623.7,2623.6,0.38132]
[1729591972749,3.2078,2623.9,2623.8,0.38129]
[1729591972750,5.5878,2623.9,2623.8,0.38129]
[1729591973047,3.2078,2623.9,2623.8,0.38129]
[1729591974140,3.2078,2624.5,2623.8,7.019]
[1729591974340,3.2078,2624.5,2624.4,1.4812]
[1729591974851,4.3078,2624.8,2624.7,0.38116]
[1729591975045,4.3078,2624.8,2624.7,1.48116]
[1729591975350,4.3078,2624.8,2624.7,0.38116]
[1729591975755,4.3078,2624.8,2624.6,0.38117]
[1729591975957,1.1,2624.7,2624.3,1.1]
[1729591976153,3.2078,2624.8,2624.3,1.1]
[1729591976154,3.2078,2624.8,2624.5,0.38119]
[1729591976448,3.2078,2624.8,2624.1,3.2078]
[1729591976449,5.5878,2624.8,2624.1,3.2078]
[1729591976752,5.5878,2624.8,2624.6,0.38117]
[1729591978244,5.5878,2624.8,2624.5,0.38118]
[1729591979946,5.5878,2624.8,2624.6,0.38118]
[1729591980346,5.5878,2624.8,2624.6,0.38116]
[1729591980347,3.2078,2624.8,2624.6,0.38116]
[1729591981142,3.2078,2624.8,2624.7,0.38116]
[1729591983549,3.2078,2625.1,2624.7,3.8096]
[1729591983750,3.2078,2625.1,2625.0,0.38112]
[1729591985150,3.2078,2625.4,2624.7,2.38]
[1729591985448,3.2078,2625.4,2625.3,0.38108]
[1729591988250,3.2078,2625.4,2625.2,0.38108]
[1729591989757,3.2078,2625.4,2624.8,5.77749765]
[1729591990060,3.2078,2625.4,2625.2,0.38108]
[1729591990756,3.58886,2625.4,2625.2,0.38108]
[1729591990956,3.58886,2625.4,2624.8,5.77749765]
[1729591990957,3.2078,2625.4,2624.8,5.77749765]
[1729591991146,3.2078,2625.4,2625.2,0.38108]
[1729591991351,3.58886,2625.4,2625.2,0.38108]
[1729591992257,3.2078,2625.4,2625.2,0.38108]
[1729591992458,3.2078,2625.4,2624.8,5.77749765]
[1729591992662,3.2078,2625.4,2625.3,0.38108]
[1729591997350,3.2078,2625.9,2625.8,0.381]
[1729591997751,3.2078,2626.3,2625.8,3.2078]
[1729591997956,0.38094,2626.3,2626.0,0.38097]
[1729591998161,0.38095,2626.2,2625.9,0.38098]
[1729591998461,0.38094,2626.3,2625.8,3.2078]
[1729591998759,0.38094,2626.3,2626.1,0.38096]
[1729591999360,0.38094,2626.3,2626.0,0.38096]
[1729592000158,0.38094,2626.3,2626.1,0.38096]
[1729592000666,4.18894,2626.3,2625.8,3.2078]
[1729592000859,0.38094,2626.3,2626.1,0.38096]
[1729592001262,0.38096,2626.1,2625.9,0.38098]
[1729592001660,0.38093,2626.3,2625.8,3.58879]
[1729592001856,0.38097,2626.1,2625.9,0.38099]
[1729592002464,2.38,2626.2,2625.8,3.2078]
[1729592002664,2.38,2626.2,2625.9,0.38099]
[1729592002665,0.38097,2626.1,2625.9,0.38099]
[1729592002965,2.38,2626.2,2625.8,3.2078]
[1729592003165,0.38098,2626.0,2625.8,3.5888]
[1729592004064,2.38,2626.2,2625.8,3.2078]
[1729592004272,2.38,2626.0,2625.2,3.2078]
[1729592004469,0.38107,2625.4,2625.2,3.2078]
[1729592004674,0.38107,2625.4,2625.2,3.58889]
[1729592005169,2.38,2625.6,2625.2,3.58889]
[1729592005371,0.38106,2625.4,2625.2,3.58889]
[1729592005577,0.38106,2625.5,2625.3,0.38107]
[1729592005773,0.38104,2625.6,2625.4,0.38106]
[1729592006180,0.38105,2625.5,2625.3,0.38107]
[1729592007567,0.38105,2625.5,2625.3,0.38108]
[1729592008174,0.38105,2625.5,2625.3,0.38107]
[1729592008568,3.59042678,2625.7,2625.2,3.2078]
[1729592008781,0.38108,2625.3,2625.2,3.2078]
[1729592009074,2.38,2625.6,2624.9,3.2078]
[1729592009271,0.3811,2625.2,2625.0,0.38111]
[1729592009472,2.38,2625.6,2624.9,3.2078]
[1729592009670,0.3811,2625.2,2625.0,0.38112]
[1729592010684,5.5878,2625.4,2624.9,3.2078]
[1729592010869,0.38111,2625.1,2624.9,3.2078]
[1729592011074,0.38111,2625.1,2624.9,3.58893]
[1729592012570,0.38111,2625.1,2625.0,0.38112]
[1729592012776,0.38111,2625.1,2624.9,3.2078]
[1729592012972,5.5878,2625.4,2624.9,3.2078]
[1729592013275,0.38111,2625.1,2624.9,3.58893]
[1729592013674,0.38111,2625.1,2625.0,0.38112]
[1729592014076,0.38111,2625.1,2624.9,3.2078]
[1729592014274,0.38111,2625.1,2624.9,3.58892]
[1729592014474,5.98123601,2625.4,2624.9,3.2078]
[1729592014671,0.3811,2625.2,2625.0,0.38111]
[1729592015081,5.98123601,2625.4,2624.9,3.58892]
[1729592015082,0.3811,2625.1,2624.9,3.58892]
[1729592015480,0.3811,2625.1,2624.9,3.2078]
[1729592015790,0.38118,2624.6,2624.5,0.99729857]
[1729592016178,4.19158,2624.6,2624.5,0.99729857]
[1729592016379,3.8104,2624.6,2624.4,1.49594786]
[1729592016588,0.38119,2624.5,2624.4,1.49594786]
[1729592020788,0.3812,2624.5,2624.3,0.38121]
[1729592021685,0.3812,2624.5,2624.0,3.2078]
[1729592021989,0.3812,2624.5,2624.3,0.38121]
[1729592022194,0.38119,2624.6,2624.4,0.3812]
[1729592022392,0.38119,2624.5,2624.3,0.38121]
[1729592024593,5.5878,2625.0,2624.3,2.38]
[1729592024893,0.38116,2624.8,2624.6,0.38116]
[1729592025095,0.38116,2624.8,2624.3,46.3878]
[1729592025305,0.38116,2624.8,2624.7,0.38116]
[1729592025798,0.38114,2624.9,2624.7,0.38116]
[1729592026001,3.58893,2625.0,2624.3,47.34083]
[1729592026297,3.58893,2625.0,2624.9,0.38113]
[1729592026498,3.2078,2625.4,2624.7,2.38]
[1729592026700,1.196,2625.5,2624.9,5.5878]
[1729592026906,0.38105,2625.5,2625.1,2.38]
[1729592027098,0.38105,2625.5,2625.3,0.38107]
[1729592027709,0.39749,2625.7,2624.9,5.5878]
[1729592027899,0.38106,2625.4,2625.2,0.38108]
[1729592029304,0.38106,2625.4,2624.9,5.5878]
[1729592029709,0.38106,2625.4,2625.3,0.38108]
[1729592030208,0.38106,2625.4,2625.2,0.38108]
[1729592030408,0.38105,2625.5,2625.3,0.38107]
[1729592030707,0.38104,2625.6,2625.4,0.38106]
[1729592030902,0.38104,2625.6,2625.5,0.38105]
[1729592031210,0.38104,2625.6,2625.4,0.38105]
[1729592031604,0.38104,2625.6,2625.2,0.38109]
[1729592031807,0.38104,2625.6,2625.4,0.38105]
[1729592032009,0.38105,2625.5,2625.4,0.38105]
[1729592032311,0.38104,2625.6,2625.4,0.38105]
[1729592032708,0.38105,2625.5,2625.3,0.38107]
[1729592032903,0.38105,2625.5,2625.1,2.38]
[1729592032904,0.38105,2625.5,2625.4,0.38106]
[1729592034005,0.38105,2625.5,2625.3,0.38107]
[1729592034399,18.11532832,2625.8,2625.4,0.38105]
[1729592034400,0.38104,2625.6,2625.4,0.38105]
[1729592034806,0.38105,2625.5,2625.4,0.38105]
[1729592035816,0.38105,2625.5,2625.3,0.38107]
[1729592037513,0.38105,2625.5,2625.2,3.2078]
[1729592037712,0.38105,2625.5,2625.3,0.38107]
[1729592038106,0.38105,2625.5,2625.2,3.2078]
[1729592038501,0.38105,2625.5,2625.3,0.38107]
[1729592039015,0.38105,2625.5,2625.2,3.2078]
[1729592039215,0.38105,2625.5,2625.3,0.38106]
[1729592040507,0.38105,2625.5,2625.2,3.2078]
[1729592040704,16.11634832,2625.8,2625.3,2.38]
[1729592040911,3.58882,2625.8,2625.6,0.38102]
[1729592041211,3.58882,2625.8,2625.7,0.38102]
[1729592041415,3.2078,2625.8,2625.7,0.38102]
[1729592041716,3.5888,2625.8,2625.7,0.38102]
[1729592042020,3.5888,2625.8,2625.6,0.38102]
[1729592042208,3.2078,2625.8,2625.7,0.38102]
[1729592043813,3.60677334,2626.1,2625.5,5.5878]
[1729592044011,3.58876,2626.1,2625.7,2.38]
[1729592044315,3.58876,2626.1,2626.0,0.38097]
[1729592044814,3.2078,2626.1,2626.0,0.38097]
[1729592045207,6.54001,2626.7,2625.7,2.38]
[1729592045409,0.38092,2626.4,2625.9,2.38]
[1729592045614,0.38089,2626.6,2626.3,0.38093]
[1729592045916,5.5878,2626.7,2626.3,0.38093]
[1729592046621,0.38092,2626.4,2626.2,0.38093]
[1729592047115,5.5878,2626.7,2625.9,2.38]
[1729592047417,0.38094,2626.3,2625.9,2.38]
[1729592047616,0.38094,2626.3,2626.1,0.38095]
[1729592047813,2.38,2626.5,2625.8,3.2078]
[1729592048012,0.38096,2626.1,2625.7,2.38]
[1729592048316,0.38098,2626.0,2625.7,2.38]
[1729592048621,3.2078,2626.4,2625.8,0.381]
[1729592048622,0.38097,2626.1,2625.8,0.381]
[1729592048809,0.38098,2626.0,2625.8,0.381]
[1729592049524,0.38097,2626.1,2625.9,0.38099]
[1729592050217,0.38097,2626.1,2625.7,2.38]
[1729592050218,0.38097,2626.0,2625.8,0.38099]
[1729592050720,0.38096,2626.1,2625.9,0.38098]
[1729592051714,3.2078,2626.4,2625.7,2.38]
[1729592051920,0.38096,2626.2,2625.7,2.38]
[1729592052121,0.38096,2626.2,2625.9,0.38098]
[1729592052421,0.38096,2626.2,2625.8,3.2078]
[1729592052618,0.38096,2626.2,2626.0,0.38097]
[1729592052918,3.58872,2626.4,2626.2,0.38094]
[1729592053118,0.38091,2626.5,2626.2,0.38094]
[1729592053322,0.38091,2626.5,2626.3,0.38093]
[1729592054022,0.38089,2626.6,2626.4,0.38091]
[1729592054223,3.2078,2626.7,2626.2,2.38]
[1729592054524,3.2078,2626.7,2626.4,2.38]
[1729592054726,3.2078,2626.7,2626.6,0.38089]
[1729592055120,3.2078,2626.7,2626.6,6.56809]
[1729592057223,3.2078,2627.1,2626.6,6.1872]
[1729592057426,3.2078,2627.1,2626.6,2.38]
[1729592057721,0.38083,2627.0,2626.6,2.38]
[1729592057924,0.38083,2627.0,2626.8,0.38086]
[1729592058727,3.2078,2627.1,2626.6,2.38]